[Event "Italian-ch Semifinal 2022"]
[Site "Acqui Terme"]
[Date "2022.06.15"]
[Round "3.1"]
[White "Barp, Alberto"]
[Black "Carnicelli, Valerio"]
[Result "1-0"]
[ECO "D23"]
[WhiteElo "2384"]
[BlackElo "2319"]
[Annotator "TA"]
[PlyCount "133"]
[EventDate "2022.06.15"]
[EventType "swiss"]
[EventCountry "ITA"]
[SourceTitle "playchess.com"]
[Source "ChessBase"]
[SourceQuality "1"]
[TimeControl "40/5400+30:1800+30"]

{[%evp 10,133,12,14,5,17,17,3,10,6,16,13,20,14,12,3,0,16,8,12,15,-16,16,12,35,33,39,17,39,47,39,39,46,33,49,40,44,34,44,0,44,0,52,50,52,50,50,41,55,47,50,48,48,42,69,46,57,50,52,57,63,62,69,58,59,62,49,32,42,0,53,35,46,31,42,35,43,35,47,52,59,54,64,63,71,10,19,8,10,8,8,8,14,9,9,9,9,9,87,87,96,96,339,376,341,298,496,496,496,496,496,496,496,496,838,838,813,669,29964,8725,29980,29980,29982,29983,29983,29968]} 1. d4 {[%emt 0:01:31]} d5 {[%emt 0:01:35]} 2. c4 {[%emt 0:00:08]} c6 {[%emt 0:00:04]} 3. Nf3 {[%emt 0:00:08]} Nf6 {[%emt 0:00:03]} 4. Qb3 {[%emt 0:00:40]} dxc4 {[%emt 0:00:06]} 5. Qxc4 {[%emt 0:00:04]} Bg4 {[%emt 0:00:04]} 6. Nbd2 {[%emt 0:00:06]} e6 {[%emt 0:00:14] D23: Queen's Gambit Accepted: 3 Nf3 Nf6 sidelines.} 7. g3 {[%emt 0:00:05]} Nbd7 {[%emt 0:00:04]} 8. Bg2 {[%emt 0:00:05]} Be7 {[%emt 0:00:02] The position is equal.} 9. O-O {[%emt 0:00:10]} O-O {[%emt 0:00:04]} 10. Qb3 {[%emt 0:00:06]} Nb6 {[%emt 0:00:04]} 11. a4 {[%emt 0:00:21]} a5 {[%emt 0:00:09]} 12. Rd1 {[%emt 0:00:39]} h6 {[%emt 0:01:01]} 13. h3 {[%emt 0:04:46]} Bh5 {[%emt 0:00:30] [#]} 14. Nf1 $146 {[%emt 0:00:30][%cal Bd2f1,Bf1e3,Be3c4][%mdl 32]} ({Predecessor:} 14. g4 Bg6 15. Ne5 Bh7 16. Nf1 Qc7 17. Bf4 Nbd5 18. Bh2 Bd6 19. Nd2 Qe7 20. Rac1 {1-0 (67) Pogonina,N (2472)-Charochkina,D (2337) Sochi 2022}) 14... Bb4 {[%emt 0:02:55]} 15. Ne3 {[%emt 0:07:26] Prevents Qd5.} (15. g4 $5 {[%cal Rg4h5]} Bg6 16. Ne5 $11) 15... Rc8 {[%emt 0:04:02]} 16. Bd2 {[%emt 0:04:25]} Nbd5 {[%emt 0:09:57][%cal Bb6d5,Bd5b4,Bb4a2][%mdl 32]} 17. Bxb4 {[%emt 0:06:33]} Nxb4 {[%emt 0:00:40]} 18. Rac1 {[%emt 0:00:34]} Qc7 {[%emt 0:06:54]} 19. Nc4 {[%emt 0:03:28]} Bxf3 {[%emt 0:07:52]} 20. Bxf3 {[%emt 0:00:19]} Rfd8 {[%emt 0:00:57]} 21. Qe3 {[%emt 0:16:25]} Ra8 {[%emt 0:10:11]} 22. Kg2 {[%emt 0:14:02]} Na2 {[%emt 0:04:43]} 23. Rc2 {[%emt 0:00:48]} Nb4 {[%emt 0:00:08]} 24. Rcc1 {[%emt 0:00:15]} Na2 {[%emt 0:00:05] Pair of Knights!} 25. Rc2 {[%emt 0:00:02]} Nb4 {[%emt 0:00:03]} 26. Rcd2 {[%emt 0:01:29]} Rd7 {[%emt 0:03:00]} 27. Qe5 {[%emt 0:02:11]} Ne8 {[%emt 0:12:40]} 28. Qc5 {[%emt 0:02:58]} Rdd8 {[%emt 0:02:00]} 29. e4 {[%emt 0:06:01]} Nd6 {[%emt 0:06:35]} 30. Ne3 {[%emt 0:01:36]} Rac8 {[%emt 0:04:39]} 31. Qh5 {[%emt 0:05:55]} Ne8 {[%emt 0:01:51]} 32. Nc4 {[%emt 0:04:38]} Ra8 {[%emt 0:00:15]} 33. b3 {[%emt 0:01:00]} Nd6 {[%emt 0:03:18]} 34. Ne3 {[%emt 0:00:20]} Qe7 {[%emt 0:01:17]} 35. Qe5 {[%emt 0:02:46]} Qc7 {[%emt 0:02:59]} 36. Rc1 {[%emt 0:09:52] White is more active.} Ne8 {[%emt 0:00:56]} 37. Qxc7 {[%emt 0:02:13]} Nxc7 {[%emt 0:00:04]} 38. Rc5 {[%emt 0:01:28]} Nba6 {[%emt 0:10:47]} 39. Rc1 {[%emt 0:02:54]} Nb4 {[%emt 0:02:04]} 40. Rcd1 {[%emt 0:00:00]} Kf8 {[%emt 0:00:00]} 41. Kf1 {[%emt 0:07:23]} Ke7 {[%emt 0:04:48]} 42. Ke2 {[%emt 0:00:58]} Kf8 {[%emt 0:09:20]} 43. h4 {[%emt 0:02:38]} Ra6 {[%emt 0:06:32]} 44. Bg2 {[%emt 0:04:43]} Ne8 {[%emt 0:00:15]} 45. d5 {[%emt 0:08:49]} exd5 {[%emt 0:06:05]} 46. exd5 {[%emt 0:00:45]} cxd5 {[%emt 0:08:20]} 47. Nxd5 {[%emt 0:00:23]} ({White should try} 47. Bxd5 $16 Nxd5 48. Rxd5 Rxd5 49. Rxd5 (49. Nxd5 Rc6 $11)) 47... Nxd5 $11 {[%emt 0:00:07]} 48. Rxd5 {[%emt 0:04:10]} Re6+ {[%emt 0:00:05]} 49. Kd2 {[%emt 0:02:08]} (49. Kd3 {looks sharper.} Rdd6 50. b4 axb4 51. Rb1) 49... Rxd5+ {[%emt 0:00:32]} 50. Bxd5 {[%emt 0:00:02][%mdl 4096] Endgame KRB-KRN} Rd6 {[%emt 0:00:35]} 51. Kc2 {[%emt 0:00:38]} b6 {[%emt 0:00:17]} 52. Rd3 {[%emt 0:00:46]} Nc7 {[%emt 0:02:32]} 53. Bc4 {[%emt 0:00:11]} Rxd3 {[%emt 0:01:57]} (53... Rf6 $11) 54. Kxd3 {[%emt 0:00:01] KB-KN} ({But not} 54. Bxd3 Ke7 $11) 54... Ke7 {[%emt 0:00:06]} 55. Ke4 {[%emt 0:00:24]} g6 $2 {[%emt 0:01:00] A mistake that costs the game.} (55... f6 $16) 56. f4 $18 {[%emt 0:01:19]} f6 {[%emt 0:00:35]} 57. g4 $1 {[%emt 0:02:39]} Kf8 $2 {[%emt 0:00:24]} (57... Kd6 {might work better.} 58. Bf7 Ne6) 58. Kd4 {[%emt 0:00:12]} Ke7 {[%emt 0:00:04] [#]} 59. h5 $1 {[%emt 0:00:30]} gxh5 {[%emt 0:00:59]} 60. gxh5 {[%emt 0:00:01]} Ne6+ {[%emt 0:00:10] [#]} 61. Kd5 $1 {[%emt 0:02:21] aiming for Kc6.} Nxf4+ {[%emt 0:00:41]} (61... Kd7 $142 62. Bb5+ Ke7) 62. Kc6 {[%emt 0:00:00]} Nxh5 {[%emt 0:00:21]} 63. Kxb6 {[%emt 0:00:02] Threatens to win with b4.} Nf4 {[%emt 0:00:14]} 64. b4 {[%emt 0:00:49]} axb4 {[%emt 0:00:15]} 65. a5 {[%emt 0:00:07][%cal Ba4a5,Ba5a6][%mdl 32] White mates.} Ne6 {[%emt 0:00:54]} 66. a6 {[%emt 0:00:18]} Kd6 {[%emt 0:00:14]} 67. Bxe6 {[%emt 0:02:46] Weighted Error Value: White=0.07 (flawless) /Black=0.19 (very precise)} 1-0

[Event "Italian-ch Semifinal 2022"]
[Site "Acqui Terme"]
[Date "2022.06.15"]
[Round "3.2"]
[White "Lumachi, Gabriele"]
[Black "Boraso, Alessio"]
[Result "0-1"]
[ECO "E14"]
[WhiteElo "2347"]
[BlackElo "2287"]
[Annotator "TA"]
[PlyCount "48"]
[EventDate "2022.06.15"]
[EventType "swiss"]
[EventCountry "ITA"]
[SourceTitle "playchess.com"]
[Source "ChessBase"]
[SourceQuality "1"]
[TimeControl "40/5400+30:1800+30"]

{[%evp 22,47,64,36,72,29,21,-29,-38,-413,-416,-877,-864,-994,-776,-1142,-1136,-1102,-1130,-1261,-1209,-1949,-1927,-2418,-1022,-2346,-950,-29999]} 1. d4 {[%emt 0:00:05]} Nf6 {[%emt 0:00:06]} 2. Nf3 {[%emt 0:00:12]} e6 {[%emt 0:00:27]} 3. e3 {[%emt 0:01:51]} b6 {[%emt 0:05:01]} 4. Bd3 {[%emt 0:01:55]} Bb7 {[%emt 0:00:21]} 5. Nbd2 {[%emt 0:02:09]} d5 {[%emt 0:05:43]} 6. Ne5 {[%emt 0:00:48]} Bd6 {[%emt 0:02:40]} 7. O-O {[%emt 0:01:32]} c5 {[%emt 0:05:52]} 8. b3 {[%emt 0:00:58]} Nbd7 {[%emt 0:07:56]} 9. f4 {[%emt 0:02:52]} Qc7 {[%emt 0:07:30]} 10. Bb2 {[%emt 0:01:17]} O-O {[%emt 0:04:10]} 11. c4 {[%emt 0:09:28]} Ne4 {[%emt 0:04:13]} 12. Rc1 {[%emt 0:05:26]} (12. cxd5 $5 {[%cal Rd2e4]} Nxd2 13. Qxd2 exd5 14. Rac1 $14) 12... f6 {[%emt 0:05:02] [#] E14: Queen's Indian: Classical Variation (4 e3).} 13. cxd5 $146 {[%emt 0:07:11]} ({Predecessor:} 13. Nef3 Rae8 14. Qe1 Qb8 15. Qh4 Qd8 16. g4 f5 17. g5 cxd4 18. exd4 Bb4 19. Rc2 Qe7 20. Nb1 a5 21. Rg2 g6 22. c5 bxc5 23. a3 c4 {½-½ (23) Lee,H (1878)-Lee,C (1836) Port of Spain 2017}) 13... Nxd2 {[%emt 0:15:12]} (13... exd5 $2 14. Nxe4 fxe5 15. Nxd6 (15. fxe5 dxe4 16. Bc4+ Kh8 $18) 15... Qxd6 16. dxe5 $18) 14. Nxd7 {[%emt 0:19:46]} (14. Qxd2 $142 exd5 15. Ng4) 14... Nxf1 $11 {[%emt 0:01:17] Black has an edge.} 15. Qh5 $2 {[%emt 0:01:45][%mdl 8192] [#]} g6 $19 {[%emt 0:07:01]} (15... Qxd7 $2 {is a self mate.} 16. Bxh7+ Kh8 17. Bg6+ Kg8 18. Qh7#) 16. Bxg6 {[%emt 0:00:59]} (16. Qh3 $142 Qxd7 17. dxe6) 16... Qxd7 {[%emt 0:01:43]} 17. Bb1 {[%emt 0:09:11]} Nd2 {[%emt 0:02:20]} 18. dxc5 {[%emt 0:28:54]} Bxc5 {[%emt 0:03:02]} 19. Rxc5 {[%emt 0:00:03]} bxc5 {[%emt 0:03:13]} 20. Qg4+ {[%emt 0:03:34]} Kh8 {[%emt 0:00:35]} 21. Bd3 {[%emt 0:00:23]} Qxd5 {[%emt 0:01:02]} 22. Bf1 {[%emt 0:00:39]} Nf3+ {[%emt 0:01:05]} 23. gxf3 {[%emt 0:00:29]} Qxf3 {[%emt 0:00:43][%cal Rf3e3] [#]} 24. Qg5 {[%emt 0:00:03]} Qxe3# {[%emt 0:00:26] White got outplayed after the opening.  Weighted Error Value: White=2.58/Black=1.39} 0-1

[Event "Italian-ch Semifinal 2022"]
[Site "Acqui Terme"]
[Date "2022.06.15"]
[Round "3.3"]
[White "Franciosi, Fausto"]
[Black "Lettieri, Giuseppe"]
[Result "0-1"]
[ECO "D27"]
[WhiteElo "2204"]
[BlackElo "2445"]
[Annotator "TA"]
[PlyCount "74"]
[EventDate "2022.06.15"]
[EventType "swiss"]
[EventCountry "ITA"]
[SourceTitle "playchess.com"]
[Source "ChessBase"]
[SourceQuality "1"]
[TimeControl "40/5400+30:1800+30"]

{[%evp 19,74,22,38,1,6,3,29,-9,4,0,4,0,0,0,0,0,0,0,0,0,0,0,1,0,0,0,0,-60,0,-25,0,0,0,0,0,0,0,0,-5,-8,0,-31,-33,-95,-33,-729,-742,-739,-728,-743,-741,-710,-692,-29983,-29984,-29971,-2156]} 1. d4 {[%emt 0:00:16]} Nf6 {[%emt 0:00:06]} 2. Nf3 {[%emt 0:00:16]} d5 {[%emt 0:00:39]} 3. c4 {[%emt 0:00:30]} e6 {[%emt 0:00:10]} 4. e3 {[%emt 0:00:26]} a6 {[%emt 0:04:45]} 5. Nc3 {[%emt 0:07:01]} dxc4 {[%emt 0:00:30]} 6. a4 {[%emt 0:01:28]} c5 {[%emt 0:02:34]} 7. Bxc4 {[%emt 0:01:52]} Nc6 {[%emt 0:00:58]} 8. O-O {[%emt 0:01:12]} cxd4 {[%emt 0:00:29]} 9. exd4 {[%emt 0:00:36]} Nb4 {[%emt 0:00:41]} 10. Bg5 {[%emt 0:07:11]} Be7 {[%emt 0:00:59]} 11. Qe2 {[%emt 0:03:22][%cal Od4d5] D27: Queen's Gambit Accepted: Classical main line: 7 e4!? and 7 a4.} (11. Qb3 $5 {[%cal Rg5f6]}) 11... O-O {[%emt 0:02:09]} 12. Rad1 {[%emt 0:02:36]} Bd7 {[%emt 0:05:36]} 13. Rfe1 {[%emt 0:10:53] White has an edge.} Bc6 {[%emt 0:08:19] Inhibits d5.} 14. Ne5 {[%emt 0:05:41][%cal Oe5f7] Black must now prevent Nxf7!} Bd5 {[%emt 0:11:02]} 15. Nxd5 {[%emt 0:06:57]} Nfxd5 {[%emt 0:01:32] [#]} 16. Bd2 $146 {[%emt 0:11:17][%cal Oe5f7]} ({Predecessor:} 16. Bc1 Rc8 17. Bb3 Bg5 18. Qg4 Bxc1 19. Rxc1 Nf6 20. Qh4 Qb6 21. Bc4 Nc6 22. Nxf7 Rxf7 23. Bxe6 {½-½ (59) Quispe Alejo,O (1982)-Saavedra,C (2149) La Paz 2014}) 16... Rc8 {[%emt 0:23:05]} 17. Rc1 {[%emt 0:04:30]} Qe8 {[%emt 0:21:12]} 18. Bb3 {[%emt 0:06:20]} Rxc1 {[%emt 0:01:02]} 19. Rxc1 {[%emt 0:00:33]} Bd6 {[%emt 0:02:08]} 20. g3 {[%emt 0:09:20]} Qe7 {[%emt 0:03:57]} 21. h4 {[%emt 0:01:05]} Rd8 {[%emt 0:01:04]} 22. h5 {[%emt 0:04:53]} h6 {[%emt 0:03:30]} 23. Qf3 {[%emt 0:03:12]} (23. a5 $11) 23... Bb8 {[%emt 0:02:15]} (23... Bxe5 $15 24. dxe5 Nc6) 24. Re1 {[%emt 0:01:30] Threatens to win with Bxb4.} Nc6 {[%emt 0:01:04]} (24... Bxe5 $5 25. dxe5 Nc6 $15) 25. Nxc6 {[%emt 0:03:02]} bxc6 {[%emt 0:00:01]} 26. Qd3 {[%emt 0:02:20]} Qb7 {[%emt 0:00:34]} 27. Bc2 {[%emt 0:01:45] And now Qh7+ would win.} Nf6 {[%emt 0:00:08] Against Qh7+} 28. b4 {[%emt 0:01:50]} Ba7 {[%emt 0:00:39]} 29. Bc3 {[%emt 0:01:40]} Kf8 {[%emt 0:02:14]} 30. Re5 {[%emt 0:00:34]} Nd5 {[%emt 0:00:31]} 31. Bd2 {[%emt 0:00:52]} (31. Re4 $15) 31... Qb6 {[%emt 0:01:01]} ({Black should try} 31... Nxb4 $17 32. Qb3 Rb8) 32. Qh7 {[%emt 0:00:50][%mdl 8192] Loses the game.} (32. Re4 $15) 32... Qxd4 $19 {[%emt 0:00:34]} 33. Re2 {[%emt 0:00:07]} Nf6 {[%emt 0:00:44]} 34. Qh8+ {[%emt 0:00:11] [#]} Ke7 $1 {[%emt 0:00:01]} 35. Qxg7 {[%emt 0:00:16]} Rg8 {[%emt 0:00:05]} 36. Qxh6 {[%emt 0:00:26] Bg5 is the strong threat.} Rxg3+ {[%emt 0:00:12]} 37. Kf1 {[%emt 0:00:07] [#]} Qg4 $1 {[%emt 0:01:49] Weighted Error Value: White=0.65/Black=0.08 (flawless)} 0-1

[Event "Italian-ch Semifinal 2022"]
[Site "Acqui Terme"]
[Date "2022.06.15"]
[Round "3.4"]
[White "Gioseffi, Massimiliano"]
[Black "Genocchio, Daniele"]
[Result "0-1"]
[ECO "C41"]
[WhiteElo "2136"]
[BlackElo "2365"]
[Annotator "TA"]
[PlyCount "66"]
[EventDate "2022.06.15"]
[EventType "swiss"]
[EventCountry "ITA"]
[SourceTitle "playchess.com"]
[Source "ChessBase"]
[SourceQuality "1"]
[TimeControl "40/5400+30:1800+30"]

{[%evp 14,66,25,11,12,0,7,0,0,-16,-9,-22,73,74,79,52,83,-25,0,-152,-145,-199,-203,-217,-219,-244,-253,-287,-273,-320,-311,-352,-352,-350,-343,-349,-336,-351,-339,-341,-342,-329,-322,-628,-410,-740,-736,-1104,-934,-1220,-1168,-1785,-1240,-5365,-5279]} 1. d4 {[%emt 0:00:09]} d6 {[%emt 0:05:12]} 2. e4 {[%emt 0:00:59]} Nf6 {[%emt 0:00:57]} 3. Nc3 {[%emt 0:01:10]} e5 {[%emt 0:00:33]} 4. Nf3 {[%emt 0:02:18]} Nbd7 {[%emt 0:01:48]} 5. Bc4 {[%emt 0:07:14]} Be7 {[%emt 0:01:40]} 6. O-O {[%emt 0:03:16]} O-O {[%emt 0:00:11]} 7. h3 {[%emt 0:07:06] 7.a4 is becoming the main line.} c6 {[%emt 0:01:43]} 8. dxe5 {[%emt 0:00:45]} dxe5 {[%emt 0:02:12] C41: Philidor Defence.} 9. a4 {[%emt 0:02:50]} Qc7 {[%emt 0:02:52] [#]} 10. Nh4 $146 {[%emt 0:12:16]} ({Predecessor:} 10. Nh2 Nc5 11. Qf3 Be6 12. Bxe6 Nxe6 13. Be3 Bc5 14. Bxc5 Nxc5 15. Qe2 Ne6 16. Qc4 {0-1 (30) Aghasaryan,R (2443)-Hovhannisyan,R (2615) Yerevan 2013}) 10... Nc5 {[%emt 0:07:35] The position is equal.} 11. Qf3 {[%emt 0:03:18]} Be6 {[%emt 0:15:57]} 12. Bxe6 {[%emt 0:00:12]} fxe6 {[%emt 0:00:05]} (12... Nxe6 $11 13. Nf5 Nd4 14. Nxd4 exd4) 13. Qe2 $16 {[%emt 0:00:44]} Rad8 {[%emt 0:00:45][%cal Oc5e4]} 14. Bg5 {[%emt 0:16:10]} Qb6 {[%emt 0:07:46]} 15. Bxf6 {[%emt 0:13:05]} ({Better is} 15. Qc4 $16) 15... Rxf6 {[%emt 0:07:32]} 16. Nf3 $2 {[%emt 0:10:26] White is now going downhill.} (16. Rab1 $11) 16... Qxb2 $17 {[%emt 0:01:05] Black is more active.} 17. Qe3 {[%emt 0:08:38]} (17. Na2 $17) 17... Qxc2 $19 {[%emt 0:05:16]} 18. Rac1 {[%emt 0:04:06]} Qd3 {[%emt 0:01:57]} 19. Rfd1 {[%emt 0:03:30]} Qxe3 {[%emt 0:00:44]} 20. fxe3 {[%emt 0:00:07]} Rff8 {[%emt 0:05:04]} 21. Nxe5 {[%emt 0:01:58]} Bf6 {[%emt 0:00:43]} 22. Nc4 {[%emt 0:00:29]} Bxc3 {[%emt 0:02:48]} 23. Rxd8 {[%emt 0:00:06]} Rxd8 {[%emt 0:00:04]} 24. Rxc3 {[%emt 0:00:09][%mdl 4096] Endgame KRN-KRN} Rd1+ {[%emt 0:01:50]} ({But not} 24... Nxe4 $2 25. Rb3 Rd1+ 26. Kh2 $19) 25. Kh2 {[%emt 0:00:13]} Nxa4 {[%emt 0:00:04]} ({Wrong is} 25... Nxe4 $2 26. Rb3 Rc1 27. Ne5 $19) 26. Ra3 {[%emt 0:01:21]} b5 {[%emt 0:00:05]} 27. Ne5 {[%emt 0:00:50]} c5 {[%emt 0:00:57][%cal Bc6c5,Bc5c4,Bc4c3][%mdl 32]} 28. Nc6 $2 {[%emt 0:00:29]} (28. Kg3) 28... a6 {[%emt 0:02:47][%cal Ba7a6,Ba6a5][%mdl 32] [#] White must now prevent ...c4.} 29. e5 {[%emt 0:00:14]} (29. Ne5 $142) 29... c4 {[%emt 0:00:05] Black is clearly winning.} 30. Nb4 {[%emt 0:00:34]} c3 {[%emt 0:01:53] Hoping for ...a5.} 31. Ra2 {[%emt 0:00:45]} a5 {[%emt 0:05:37]} 32. Nc2 {[%emt 0:00:21]} Rd2 {[%emt 0:00:56][%cal Ob5b4] Strongly threatening ...b4!} 33. Kg3 {[%emt 0:00:32] [#]} Rxc2 $1 {[%emt 0:06:17] Weighted Error Value: White=1.31/Black=0.19 (very precise)} 0-1

[Event "Italian-ch Semifinal 2022"]
[Site "Acqui Terme"]
[Date "2022.06.15"]
[Round "3.5"]
[White "Corvi, Marco"]
[Black "Palozza, Christian"]
[Result "0-1"]
[ECO "E21"]
[WhiteElo "2318"]
[BlackElo "2284"]
[Annotator "TA"]
[PlyCount "74"]
[EventDate "2022.06.15"]
[EventType "swiss"]
[EventCountry "ITA"]
[SourceTitle "playchess.com"]
[Source "ChessBase"]
[SourceQuality "1"]
[TimeControl "40/5400+30:1800+30"]

{[%evp 12,74,5,4,5,7,8,-4,-11,-10,11,-14,-13,-23,-18,-24,-8,-32,-28,-63,-71,-71,-71,-136,-141,-143,-151,-170,-162,-237,-210,-250,-66,-69,-41,-38,0,-62,-64,-78,-74,-164,0,0,0,-90,-93,-93,-93,-84,0,0,0,-103,-100,-123,-114,-147,-116,-616,-610,-29971,-29974,-29956,-29959]} 1. d4 {[%emt 0:03:15]} Nf6 {[%emt 0:00:12]} 2. c4 {[%emt 0:00:39]} e6 {[%emt 0:00:06]} 3. Nc3 {[%emt 0:00:13]} Bb4 {[%emt 0:00:06]} 4. e3 {[%emt 0:00:34]} b6 {[%emt 0:00:06]} 5. Bd2 {[%emt 0:01:22]} Bb7 {[%emt 0:03:32]} 6. Nf3 {[%emt 0:00:55]} Bxc3 {[%emt 0:00:24]} 7. Bxc3 {[%emt 0:00:10]} Ne4 {[%emt 0:00:06] E21: Nimzo-Indian: 4 Nf3.} 8. Qc2 {[%emt 0:07:25]} f5 {[%emt 0:01:23]} 9. O-O-O {[%emt 0:02:52]} Nxc3 {[%emt 0:10:09] The position is equal.} 10. Qxc3 {[%emt 0:01:28]} d6 {[%emt 0:00:20] [#]} 11. h4 $146 {[%emt 0:08:57]} (11. d5 $5 {[%cal Rc3g7]} e5 12. h4 $11) ({Predecessor:} 11. Bd3 O-O 12. Rhe1 Be4 13. Qc2 Bxd3 14. Qxd3 Nd7 15. e4 Qf6 16. Kb1 Rad8 17. exf5 Qxf5 18. Qxf5 exf5 19. Ng5 Rfe8 {1-0 (46) Nilsson,A-Marin y Llovet,V London 1927}) 11... Qf6 {[%emt 0:06:09]} 12. Ng5 {[%emt 0:18:03]} h6 {[%emt 0:11:28]} 13. Nf3 {[%emt 0:00:43]} g6 {[%emt 0:00:34]} 14. c5 {[%emt 0:04:40]} bxc5 {[%emt 0:20:55]} 15. Qb3 {[%emt 0:05:30]} Bd5 {[%emt 0:04:07]} 16. Qa4+ {[%emt 0:04:23]} Ke7 {[%emt 0:02:38]} 17. Rd2 {[%emt 0:25:43]} ({White should play} 17. h5) 17... Nd7 $17 {[%emt 0:03:32]} 18. Bb5 {[%emt 0:02:07]} Nb6 {[%emt 0:01:35]} 19. Qc2 {[%emt 0:03:26]} c4 {[%emt 0:02:16] And now ...a6 would win.} 20. b3 {[%emt 0:01:17]} (20. Ba6 $142) 20... Rab8 $19 {[%emt 0:07:31]} 21. Qc3 {[%emt 0:00:27]} Bxf3 $2 {[%emt 0:07:10] [#]} (21... c5 $19 22. bxc4 cxd4 23. Qxd4 Rhc8 24. Qxf6+ Kxf6) 22. gxf3 $15 {[%emt 0:00:23]} Nd5 {[%emt 0:00:40]} (22... c5 $5 {[%cal Rc4b3]} 23. bxc4 Rhc8 $15) 23. Qxc4 {[%emt 0:00:39]} c6 {[%emt 0:00:01]} (23... c5 $5 {[%cal Rc5d4]} 24. e4 fxe4 25. fxe4 Qf3 $17) 24. Ba4 {[%emt 0:01:09]} ({Don't blunder} 24. Qxc6 $2 Rhc8 25. Kb1 Rxc6 $19) (24. Ba6 $1 $11) 24... Rhc8 {[%emt 0:00:02]} 25. Qa6 {[%emt 0:04:59]} Rc7 {[%emt 0:01:15]} 26. Qa5 {[%emt 0:00:28] [#]} (26. Kb1 $17 {was worth a try.}) 26... Rb6 $2 {[%emt 0:02:19]} (26... c5 $1 $19 {[%cal Rc5d4] Strongly threatening ...cxd4+.} 27. Kb2 cxd4) 27. Rc2 $11 {[%emt 0:00:51]} f4 {[%emt 0:05:40]} 28. Qd2 {[%emt 0:01:20]} (28. e4 $1 $11 {keeps the balance.} Nb4 29. Rc4 Nd3+ 30. Kd2) 28... fxe3 $17 {[%emt 0:00:13]} 29. fxe3 {[%emt 0:00:01]} Qxf3 {[%emt 0:00:11]} 30. Re1 {[%emt 0:00:24]} Nb4 {[%emt 0:02:12] Black is more active.} ({Better is} 30... Qe4 $17 {Threatens to win with ...c5.} 31. Kb2 Nb4) 31. Rc4 $1 $11 {[%emt 0:00:29]} Nd5 {[%emt 0:00:29]} (31... Rcb7 $11) 32. Rc2 $17 {[%emt 0:00:20]} Qe4 $36 {[%emt 0:00:32][%mdl 2048] Black is really pushing.} 33. a3 {[%emt 0:00:25]} c5 {[%emt 0:01:35][%cal Bc6c5,Bc5d4,Bd4d3][%mdl 32]} 34. Qf2 {[%emt 0:01:19]} Rb8 {[%emt 0:01:26] White must now prevent ...Rf8. Really sharp!} 35. Qg3 $2 {[%emt 0:00:31][%mdl 8192]} (35. dxc5 $17 Rxc5 36. Rxc5 dxc5 37. Qc2 Qxc2+ 38. Kxc2) 35... Rbc8 $19 {[%emt 0:01:02]} 36. Ree2 {[%emt 0:00:30]} cxd4 {[%emt 0:00:23]} 37. b4 {[%emt 0:00:31]} d3 {[%emt 0:00:29] Weighted Error Value: White=0.69/Black=0.23 (precise)} 0-1